bitfinex/quotes_BTCUSD_20250127
["timestamp","ask_amount","ask_price","bid_price","bid_amount"]
[1738000368660,0.00029842,99374.0,99373.0,0.27672998]
[1738000368864,0.0007918,99374.0,99373.0,0.27672998]
[1738000369741,0.0007918,99374.0,99373.0,0.25372998]
[1738000370310,0.0007918,99374.0,99373.0,0.27672998]
[1738000370815,0.0007918,99374.0,99373.0,0.27972998]
[1738000371026,0.0007918,99374.0,99373.0,0.10578398]
[1738000371866,0.0007918,99374.0,99373.0,0.25672998]
[1738000372079,0.0017918,99374.0,99373.0,0.25672998]
[1738000372431,0.0007918,99374.0,99373.0,0.25372998]
[1738000372863,0.0017918,99374.0,99373.0,0.27672998]
[1738000374370,0.0007918,99374.0,99373.0,0.27672998]
[1738000374498,0.0007918,99374.0,99373.0,0.27972998]
[1738000375126,0.0007918,99374.0,99373.0,0.00943669]
[1738000375127,0.1517358,99374.0,99373.0,0.00943669]
[1738000375472,0.3017358,99374.0,99373.0,0.004]
[1738000375595,0.3017358,99374.0,99373.0,0.003]
[1738000375795,0.1517918,99374.0,99349.0,0.150982]
[1738000376064,0.00125811,99373.0,99350.0,0.09734729]
[1738000376212,0.150979,99351.0,99350.0,0.09734729]
[1738000376438,0.150976,99353.0,99350.0,0.09734729]
[1738000376658,0.1517918,99374.0,99350.0,0.09734729]
[1738000376938,0.00125812,99373.0,99350.0,0.09734729]
[1738000377158,0.00125812,99373.0,99352.0,0.023]
[1738000377367,0.0057918,99374.0,99356.0,0.09734729]
[1738000377600,0.0057918,99374.0,99373.0,0.150946]
[1738000377817,0.0007918,99374.0,99373.0,0.24829329]
[1738000378037,0.0007918,99374.0,99373.0,0.42129329]
[1738000378243,0.0007918,99374.0,99373.0,0.44129329]
[1738000378446,0.0027918,99374.0,99373.0,0.45129329]
[1738000378654,0.002,99374.0,99373.0,0.471285]
[1738000378868,1e-06,99374.0,99373.0,0.471285]
[1738000379093,0.00029842,99412.0,99373.0,0.471285]
[1738000379094,0.00029842,99412.0,99411.0,0.150888]
[1738000379298,0.00044638,99412.0,99411.0,0.09734729]
[1738000379505,0.00044638,99412.0,99411.0,0.24823529]
[1738000380351,0.00244638,99412.0,99411.0,0.27123529]
[1738000380760,0.00044638,99412.0,99411.0,0.27123529]
[1738000380962,0.00144638,99412.0,99411.0,0.27123529]
[1738000381175,0.00144638,99412.0,99411.0,0.42123529]
[1738000382005,0.00144638,99412.0,99411.0,0.44123529]
[1738000382218,3.8e-07,99412.0,99411.0,0.45123529]
[1738000382418,0.08779327,99418.0,99417.0,0.323879]
[1738000382627,0.08779327,99418.0,99417.0,0.44122629]
[1738000382628,0.00728527,99418.0,99417.0,0.44122629]
[1738000382865,0.150804,99467.0,99437.0,0.300849]
[1738000383082,0.20106,99473.0,99437.0,0.39819629]
[1738000383285,0.150807,99465.0,99437.0,0.42119629]
[1738000383488,0.351871,99469.0,99437.0,0.42119629]
[1738000383698,0.150812,99461.0,99437.0,0.42119629]
[1738000383925,0.20106,99473.0,99437.0,0.42119629]
[1738000384128,0.201069,99469.0,99437.0,0.42119629]
[1738000384346,0.201078,99464.0,99437.0,0.42119629]
[1738000384544,0.15083,99450.0,99437.0,0.27119629]
[1738000384751,0.00034781,99438.0,99437.0,0.27119629]
[1738000384933,0.00034781,99438.0,99437.0,0.09734729]
[1738000385697,0.15119481,99438.0,99437.0,0.09734729]
[1738000385881,0.201132,99437.0,99412.0,0.201182]
[1738000386098,0.15119481,99438.0,99437.0,0.006]
[1738000386298,0.30119481,99438.0,99437.0,0.006]
[1738000386535,0.15,99437.0,99380.0,0.02050379]
[1738000386747,0.201134,99436.0,99406.0,0.09734729]
[1738000386958,0.150851,99436.0,99413.0,0.023]
[1738000387156,0.00034781,99438.0,99431.0,0.023]
[1738000387358,0.00034781,99438.0,99432.0,0.09734729]
[1738000387558,0.150855,99433.0,99432.0,0.09734729]
[1738000387761,0.201132,99437.0,99416.0,0.201173]
[1738000387976,0.005,99436.0,99417.0,0.09734729]
[1738000388186,0.005,99436.0,99407.0,0.201192]
[1738000388187,0.15088,99417.0,99407.0,0.201193]
[1738000388412,0.201136,99435.0,99409.0,0.201189]
[1738000388619,0.150878,99418.0,99411.0,0.150888]
[1738000388823,0.001,99433.0,99412.0,0.09734729]
[1738000389031,0.150872,99422.0,99412.0,0.09734729]
[1738000389266,0.15086,99430.0,99415.0,0.023]
[1738000389470,0.005,99436.0,99418.0,0.20117]
[1738000389674,0.002,99435.0,99430.0,0.150859]
[1738000389872,0.002,99435.0,99431.0,0.09734729]
[1738000390081,0.002,99435.0,99432.0,0.09734729]
[1738000390292,0.150854,99434.0,99432.0,0.09734729]
[1738000390490,0.152852,99435.0,99432.0,0.09734729]
[1738000390771,0.150855,99433.0,99432.0,0.09734729]
[1738000390988,0.00034781,99438.0,99433.0,0.20114]
[1738000391191,0.00034781,99438.0,99437.0,0.173849]
[1738000391395,0.00034781,99438.0,99437.0,0.27119629]
[1738000392243,0.00034781,99438.0,99437.0,0.42119629]
[1738000393119,0.00034781,99438.0,99437.0,0.27119629]
[1738000393326,0.00034781,99438.0,99437.0,0.09734729]
[1738000393528,0.00034781,99438.0,99437.0,0.25219629]
[1738000393738,0.00034781,99438.0,99437.0,0.27619629]
[1738000394551,0.00034781,99438.0,99437.0,0.10234729]
[1738000394757,0.00034781,99438.0,99437.0,0.005]
[1738000394758,0.15119481,99438.0,99437.0,0.005]
[1738000394963,0.15119481,99438.0,99437.0,0.001]
[1738000395627,0.00034781,99438.0,99411.0,0.0001415]
[1738000395833,0.00034781,99438.0,99412.0,0.29852929]
[1738000396036,0.150872,99422.0,99416.0,0.023]
[1738000396244,0.150872,99422.0,99417.0,0.09734729]
[1738000396452,0.150887,99412.0,99411.0,0.0001415]
[1738000396886,0.00434781,99438.0,99414.0,0.150882]
[1738000397096,0.00434781,99438.0,99416.0,0.023]
[1738000397306,0.00434781,99438.0,99437.0,0.150849]
[1738000397540,0.01234781,99438.0,99437.0,0.27119629]
[1738000397778,0.00434781,99438.0,99437.0,0.27119629]
[1738000397985,0.00834781,99438.0,99437.0,0.27119629]
[1738000399385,0.00034781,99438.0,99437.0,0.27219629]
[1738000399604,0.00034781,99438.0,99437.0,0.42219629]
[1738000400231,0.00034781,99438.0,99437.0,0.42619629]
[1738000400757,0.00034781,99438.0,99437.0,0.27619629]
[1738000401140,0.00034781,99438.0,99437.0,0.27519629]
[1738000401348,0.00034781,99438.0,99437.0,0.27719629]
[1738000401552,0.00034781,99438.0,99437.0,0.42719629]
[1738000401987,0.00034781,99438.0,99437.0,0.42519629]
[1738000402193,0.00034781,99438.0,99437.0,0.42619629]
[1738000402398,0.00034781,99438.0,99437.0,0.42219629]
[1738000402563,0.00034781,99438.0,99437.0,0.42619629]
[1738000402762,8.1e-07,99438.0,99437.0,0.46667132]
[1738000402974,8.1e-07,99438.0,99437.0,0.46267132]
[1738000403179,0.00029842,99474.0,99450.0,0.300829]
[1738000403400,0.00034717,99451.0,99450.0,0.42117629]
[1738000404483,0.00034717,99451.0,99450.0,0.43204092]
[1738000404824,0.00034717,99451.0,99450.0,0.50854092]
[1738000405028,0.00034717,99451.0,99450.0,0.24817629]
[1738000405444,0.00134717,99451.0,99450.0,0.25917629]
[1738000405644,0.00034717,99451.0,99450.0,0.25117629]
[1738000405855,0.00034717,99451.0,99450.0,0.27417629]
[1738000406068,0.00134717,99451.0,99450.0,0.28217629]
[1738000406281,0.00134717,99451.0,99450.0,0.09734729]
[1738000406459,0.00134717,99451.0,99450.0,0.24817629]
[1738000406721,0.00234717,99451.0,99450.0,0.28217629]
[1738000406942,0.00034717,99451.0,99450.0,0.27417629]
[1738000407164,0.00034717,99451.0,99450.0,0.42417629]
[1738000407373,0.00034717,99451.0,99450.0,0.42617629]
[1738000407762,0.00034717,99451.0,99450.0,0.27617629]
[1738000408005,0.00034717,99451.0,99450.0,0.27317629]
[1738000408647,0.00034717,99451.0,99450.0,0.27117629]
[1738000408851,0.00034717,99451.0,99450.0,0.42617629]
[1738000409294,0.00034717,99451.0,99450.0,0.42217629]
[1738000409503,0.00034717,99451.0,99450.0,0.42517629]
[1738000409702,0.00034717,99451.0,99450.0,0.42417629]
[1738000409836,0.00034717,99451.0,99450.0,0.42117629]
[1738000410054,0.00134717,99451.0,99450.0,0.42817629]
[1738000410454,0.00034717,99451.0,99450.0,0.42317629]
[1738000411249,0.00034717,99451.0,99450.0,0.42117629]
[1738000411858,0.00134717,99451.0,99450.0,0.42817629]
[1738000412059,0.00034717,99451.0,99450.0,0.42317629]
[1738000412332,0.00034717,99451.0,99450.0,0.27117629]
[1738000412536,0.00134717,99451.0,99450.0,0.27617629]
[1738000412667,0.00034717,99451.0,99450.0,0.27317629]
[1738000413071,0.00134717,99451.0,99450.0,0.27617629]
[1738000413308,0.00134717,99451.0,99450.0,0.27117629]
[1738000413505,0.00234717,99451.0,99450.0,0.45743503]
[1738000414406,1.7e-07,99451.0,99450.0,0.55913503]
[1738000414607,0.00029842,99474.0,99473.0,0.323794]
[1738000414788,0.00029842,99474.0,99473.0,0.45240003]
[1738000414928,0.00079439,99474.0,99473.0,0.45240003]
[1738000415831,0.00179439,99474.0,99473.0,0.45840003]
[1738000416040,0.00179439,99474.0,99473.0,0.45240003]
[1738000416371,0.00279439,99474.0,99473.0,0.46140003]
[1738000416875,0.00279439,99474.0,99473.0,0.43014129]
[1738000417233,3.9e-07,99474.0,99473.0,0.48137032]
[1738000417433,3.9e-07,99474.0,99473.0,0.46137032]
[1738000417590,3.9e-07,99474.0,99473.0,0.49205373]
[1738000417803,3.9e-07,99474.0,99473.0,0.4638247]
[1738000419488,0.00029754,99474.0,99473.0,0.4638247]
[1738000419683,0.00029754,99474.0,99473.0,0.1400307]
[1738000419889,0.00029754,99474.0,99473.0,0.10934729]
[1738000420089,0.15109054,99474.0,99473.0,0.10934729]
[1738000420287,0.00029754,99474.0,99473.0,0.10934729]
[1738000420491,0.15109054,99474.0,99473.0,0.10934729]
[1738000420744,0.00029754,99474.0,99473.0,0.10934729]
[1738000421102,0.00029715,99474.0,99473.0,0.09734729]
[1738000421304,0.00029715,99474.0,99473.0,0.27114129]
[1738000421505,0.00029715,99474.0,99473.0,0.42214129]
[1738000422136,0.00029715,99474.0,99473.0,0.4328655]
[1738000422340,0.00029715,99474.0,99473.0,0.4318655]
[1738000422763,0.00029715,99474.0,99473.0,0.4338655]
[1738000422976,0.00029715,99474.0,99473.0,0.4318655]
[1738000423209,0.00029715,99474.0,99473.0,0.45208861]
[1738000423410,0.00029715,99474.0,99473.0,0.1080715]
[1738000423835,0.15109015,99474.0,99473.0,0.09734729]
[1738000424038,0.15109015,99474.0,99473.0,0.12034729]
[1738000424212,0.15209015,99474.0,99473.0,0.12934729]
[1738000424417,0.00129715,99474.0,99473.0,0.12934729]
[1738000424690,0.15109015,99474.0,99473.0,0.12034729]
[1738000424899,0.201078,99464.0,99427.0,0.0754]
[1738000425110,0.15109015,99474.0,99473.0,0.002]
[1738000425282,0.30109015,99474.0,99473.0,0.002]
[1738000425514,0.150834,99447.0,99446.0,0.09734729]
[1738000425717,0.00029715,99474.0,99446.0,0.09734729]
[1738000425941,0.150834,99447.0,99446.0,0.09734729]
[1738000428335,0.00029715,99474.0,99449.0,0.023]
[1738000428540,0.150822,99455.0,99450.0,0.09734729]
[1738000428764,0.00029715,99474.0,99451.0,0.023]
[1738000428969,0.150817,99458.0,99455.0,0.023]
[1738000429149,0.150817,99458.0,99449.0,0.16134735]
[1738000429150,0.00029715,99474.0,99456.0,0.09734729]
[1738000429368,0.150818,99457.0,99456.0,0.12034729]
[1738000430399,0.00029715,99474.0,99457.0,0.023]
[1738000430601,0.150817,99458.0,99457.0,0.023]
[1738000430827,0.201087,99460.0,99457.0,0.09734729]
[1738000431027,0.201087,99460.0,99458.0,0.09734729]
[1738000431235,0.150815,99459.0,99458.0,0.09734729]
[1738000432209,0.201071,99468.0,99458.0,0.09734729]
[1738000432408,0.0794,99493.0,99459.0,0.023]
[1738000432655,0.00125666,99483.0,99460.0,0.09734729]
[1738000432858,0.150834,99447.0,99446.0,0.0001415]
[1738000433070,0.150834,99447.0,99446.0,0.09748879]
[1738000433211,0.150834,99447.0,99446.0,0.0001415]
[1738000433967,0.150834,99447.0,99446.0,0.09748879]
[1738000434164,0.150834,99447.0,99446.0,0.10048879]
[1738000434844,0.150821,99456.0,99450.0,0.150829]
[1738000435053,0.150826,99452.0,99451.0,0.09734729]
[1738000436180,0.151826,99452.0,99451.0,0.09734729]
[1738000436387,0.150834,99447.0,99446.0,0.0001415]
[1738000436545,0.15209102,99447.0,99446.0,0.0001415]
[1738000436945,0.150834,99447.0,99446.0,0.0001415]
[1738000437187,0.150834,99447.0,99446.0,0.09748879]
[1738000437647,0.150834,99447.0,99446.0,0.0001415]
[1738000439168,0.151834,99447.0,99446.0,0.0001415]
[1738000439392,0.152834,99447.0,99446.0,0.0001415]
[1738000440565,0.152834,99447.0,99446.0,0.09748879]
[1738000440566,0.002,99447.0,99446.0,0.09748879]
[1738000440762,0.002,99447.0,99446.0,0.27132379]
[1738000440961,0.002,99447.0,99446.0,0.1308874]
[1738000441167,0.002,99447.0,99446.0,0.27132379]
[1738000441373,0.001,99447.0,99446.0,0.27132379]
[1738000441747,0.002,99447.0,99446.0,0.27132379]
[1738000442164,0.0468,99499.0,99473.0,0.173794]
[1738000442368,0.20103,99488.0,99473.0,0.27114129]
[1738000442565,0.201023,99492.0,99473.0,0.27114129]
[1738000442766,0.152194,99500.0,99473.0,0.42114129]
[1738000442982,0.00144,99500.0,99473.0,0.42114129]
[1738000443180,0.00144,99500.0,99473.0,0.46854129]
[1738000443374,0.00144,99500.0,99473.0,0.48819467]
[1738000444648,1.5e-07,99474.0,99473.0,0.49819467]
[1738000444822,1.5e-07,99474.0,99473.0,0.51919467]
[1738000445199,1.5e-07,99474.0,99473.0,0.51819467]
[1738000445397,0.00100015,99474.0,99473.0,0.51719467]
[1738000445603,0.00100015,99474.0,99473.0,0.50119467]
[1738000445826,1.5e-07,99474.0,99473.0,0.49219467]
[1738000446042,1.5e-07,99474.0,99473.0,0.44079467]
[1738000446212,0.00100015,99474.0,99473.0,0.27679467]
[1738000446425,0.00100015,99474.0,99473.0,0.10234729]
[1738000446584,0.15179315,99474.0,99473.0,0.10234729]
[1738000446787,0.15279315,99474.0,99473.0,0.11134729]
[1738000447113,0.15279315,99474.0,99473.0,0.10234729]
[1738000447323,0.15379315,99474.0,99473.0,0.014]
[1738000447706,0.00300015,99474.0,99473.0,0.11134729]
[1738000447913,0.00200015,99474.0,99473.0,0.25714129]
[1738000448177,0.00200015,99474.0,99473.0,0.28314129]
[1738000448533,0.00100015,99474.0,99473.0,0.28014129]
[1738000448868,1.5e-07,99474.0,99473.0,0.27114129]
[1738000449073,1.5e-07,99474.0,99473.0,0.12234729]
[1738000449217,1.5e-07,99474.0,99473.0,0.42114129]
[1738000449414,0.00200015,99474.0,99473.0,0.42114129]
[1738000449616,0.00200015,99474.0,99473.0,0.42314129]
[1738000450016,0.15279315,99474.0,99473.0,0.09934729]
[1738000450381,0.15279315,99474.0,99473.0,0.12034729]
[1738000450815,0.00200015,99474.0,99473.0,0.12034729]
[1738000451017,1.5e-07,99474.0,99473.0,0.27714129]
[1738000451221,0.00100015,99474.0,99473.0,0.27714129]
[1738000451633,0.00100015,99474.0,99473.0,0.42714129]
[1738000451837,1.5e-07,99474.0,99473.0,0.42714129]
[1738000452084,1.5e-07,99474.0,99473.0,0.43771286]
[1738000452696,1.5e-07,99474.0,99473.0,0.52471286]
[1738000452898,1.5e-07,99474.0,99473.0,0.52571286]
[1738000453105,1.5e-07,99474.0,99473.0,0.51571286]
[1738000453520,1.5e-07,99474.0,99473.0,0.41571286]
[1738000453701,1.5e-07,99474.0,99473.0,0.40971286]
[1738000453905,0.00100015,99474.0,99473.0,0.40971286]
[1738000454226,1.5e-07,99474.0,99473.0,0.43171286]
[1738000454498,1.5e-07,99474.0,99473.0,0.43571286]
[1738000454695,1.5e-07,99474.0,99473.0,0.45557892]
[1738000455143,1.5e-07,99474.0,99473.0,0.45157892]
[1738000455351,1.5e-07,99474.0,99473.0,0.45357892]
[1738000455918,1.5e-07,99474.0,99473.0,0.45157892]
[1738000456125,0.00100015,99474.0,99473.0,0.46057892]
[1738000456325,0.00100015,99474.0,99473.0,0.46357892]
[1738000456852,1.5e-07,99474.0,99473.0,0.45457892]
[1738000457016,0.00100015,99474.0,99473.0,0.46357892]
[1738000457348,0.000298,99512.0,99499.0,0.323755]
[1738000457509,0.00158873,99500.0,99499.0,0.42110229]
[1738000458109,0.00158873,99500.0,99499.0,0.12034729]
[1738000458314,0.15234173,99500.0,99499.0,0.09734729]
[1738000458514,0.00158873,99500.0,99499.0,0.24810229]
[1738000458744,0.00158873,99500.0,99499.0,0.27310229]
[1738000459137,0.00158873,99500.0,99499.0,0.12234729]
[1738000459341,0.00158873,99500.0,99499.0,0.27110229]
[1738000459558,0.15234173,99500.0,99499.0,0.09734729]
[1738000460491,0.00158873,99500.0,99483.0,0.01048792]
[1738000460651,0.00158873,99500.0,99484.0,0.09734729]
[1738000460872,0.00158873,99500.0,99489.0,0.023]
[1738000461066,0.150755,99499.0,99491.0,0.023]
[1738000461273,0.00158873,99500.0,99491.0,0.023]
[1738000461274,0.00158873,99500.0,99496.0,0.023]
[1738000461468,0.00158873,99500.0,99497.0,0.09734729]
[1738000461728,0.150756,99498.0,99497.0,0.12034729]
[1738000462165,0.150756,99498.0,99497.0,0.09734729]
[1738000462366,0.00384499,99500.0,99446.0,0.0793415]
[1738000462661,0.150796,99473.0,99467.0,0.09734729]
[1738000462892,0.201019,99493.0,99468.0,0.023]
[1738000463067,0.150778,99484.0,99477.0,0.023]
[1738000463271,0.201021,99493.0,99478.0,0.09734729]
[1738000463475,0.001,99498.0,99479.0,0.32139329]
[1738000463652,0.001,99498.0,99479.0,0.12034729]
[1738000463833,0.001,99498.0,99480.0,0.023]
[1738000464038,0.150781,99482.0,99481.0,0.09734729]
[1738000465884,0.150781,99482.0,99481.0,0.09834729]
[1738000466245,0.150781,99482.0,99481.0,0.09734729]
[1738000466456,0.150793,99474.0,99473.0,0.0001415]
[1738000466650,0.150793,99474.0,99473.0,0.09748879]
[1738000467469,0.15204959,99474.0,99473.0,0.0001415]
[1738000467673,0.15304985,99474.0,99473.0,0.0001415]
[1738000467873,0.16331855,99474.0,99473.0,0.0001415]
[1738000468086,0.19639874,99474.0,99473.0,0.0001415]
[1738000468288,0.151793,99474.0,99473.0,0.0001415]
[1738000468501,0.151793,99474.0,99473.0,0.09748879]
[1738000468502,0.001,99474.0,99473.0,0.09748879]
[1738000468799,0.151793,99474.0,99473.0,0.0001415]
[1738000468976,0.155793,99474.0,99473.0,0.09748879]
[1738000469432,0.26953544,99490.0,99459.0,0.023]
[1738000469643,0.26953544,99480.0,99460.0,0.09734729]
[1738000469871,0.150812,99461.0,99460.0,0.09734729]
[1738000470078,0.150794,99473.0,99461.0,0.023]
[1738000470350,0.150801,99469.0,99463.0,0.023]
[1738000470570,0.150801,99469.0,99454.0,0.201097]
[1738000470571,0.150804,99467.0,99465.0,0.023]
[1738000470776,0.201061,99472.0,99467.0,0.023]
[1738000471011,0.004,99474.0,99447.0,0.15]
[1738000471195,0.001,99461.0,99460.0,0.173814]
[1738000471356,0.150801,99469.0,99461.0,0.023]
[1738000471563,0.004,99486.0,99463.0,0.023]
[1738000471757,0.150798,99471.0,99465.0,0.023]
[1738000471959,0.150798,99471.0,99467.0,0.023]
[1738000472191,0.150796,99472.0,99468.0,0.09734729]
[1738000472357,0.201056,99475.0,99468.0,0.09734729]
[1738000472556,0.1508,99469.0,99468.0,0.09734729]
[1738000473451,0.001,99472.0,99469.0,0.023]
[1738000473663,0.002,99474.0,99471.0,0.023]
[1738000473880,0.002,99474.0,99473.0,0.023]
[1738000474085,0.150786,99479.0,99473.0,0.12034729]
[1738000474293,0.150786,99479.0,99475.0,0.023]
[1738000474469,0.0001487,99481.0,99477.0,0.023]
[1738000474669,0.150785,99479.0,99478.0,0.09734729]
[1738000475083,0.1509317,99481.0,99478.0,0.09734729]
[1738000475286,0.001,99479.0,99478.0,0.09734729]
[1738000475714,0.0001487,99481.0,99478.0,0.09734729]
[1738000476114,0.001,99479.0,99478.0,0.09734729]
[1738000476321,0.001,99479.0,99478.0,0.24813429]
[1738000476537,0.001,99479.0,99478.0,0.42113429]
[1738000476740,0.002,99479.0,99478.0,0.42113429]
[1738000476949,0.0001487,99481.0,99480.0,0.150784]
[1738000477154,7e-07,99481.0,99480.0,0.42113129]
[1738000477343,0.000298,99512.0,99499.0,0.323755]
[1738000477598,1.5e-07,99500.0,99499.0,0.42110229]
[1738000477802,1.5e-07,99500.0,99499.0,0.50280229]
[1738000478008,1.5e-07,99500.0,99499.0,0.53407092]
[1738000478219,1.5e-07,99500.0,99499.0,0.50280229]
[1738000479039,1.5e-07,99500.0,99499.0,0.53404843]
[1738000479221,1.5e-07,99500.0,99499.0,0.54951349]
[1738000479454,1e-06,99513.0,99512.0,0.173]
[1738000479656,1e-06,99513.0,99512.0,0.44108229]
[1738000479862,0.00014967,99513.0,99512.0,0.47230665]
[1738000480067,0.00014967,99513.0,99512.0,0.44108229]
[1738000480783,0.00014967,99513.0,99512.0,0.46993523]
[1738000480968,0.00014967,99513.0,99512.0,0.46393523]
[1738000481328,0.00014967,99513.0,99512.0,0.46993523]
[1738000481527,0.00029758,99529.0,99512.0,0.46993523]
[1738000481528,0.00029758,99529.0,99528.0,0.300711]
[1738000481746,0.00029758,99529.0,99528.0,0.42105829]
[1738000482148,0.00029758,99529.0,99528.0,0.39805829]
[1738000482376,0.00029758,99529.0,99528.0,0.24805829]
[1738000482579,0.00029758,99529.0,99528.0,0.27105829]
[1738000482783,0.00029758,99529.0,99528.0,0.24805829]
[1738000482987,0.00029758,99529.0,99512.0,0.005]
[1738000482988,0.150723,99520.0,99512.0,0.005]
[1738000483191,0.00029758,99529.0,99522.0,0.150719]
[1738000483393,0.00029758,99529.0,99528.0,0.005]
[1738000483638,0.00029758,99529.0,99523.0,0.09734729]
[1738000483639,0.00029758,99529.0,99524.0,0.150717]
[1738000483841,0.00029758,99529.0,99521.0,0.200961]
[1738000483842,0.00029758,99529.0,99525.0,0.24806229]
[1738000484121,0.00029758,99529.0,99528.0,0.176711]
[1738000484281,0.00029758,99529.0,99528.0,0.27205829]
[1738000484485,0.00029758,99529.0,99528.0,0.27105829]
[1738000484893,0.00129758,99529.0,99528.0,0.27105829]
[1738000485439,0.00029758,99529.0,99528.0,0.27105829]
[1738000485938,0.00129758,99529.0,99528.0,0.09734729]
[1738000486544,0.00129758,99529.0,99528.0,0.24805829]
[1738000486905,0.00129758,99529.0,99528.0,0.09734729]
[1738000487099,0.00029758,99529.0,99528.0,0.24805829]
[1738000487328,0.00029758,99529.0,99528.0,0.09734729]
[1738000487487,0.00129758,99529.0,99528.0,0.09734729]
[1738000487692,0.15200658,99529.0,99528.0,0.09734729]
[1738000487924,0.00029758,99529.0,99528.0,0.09734729]
[1738000488133,0.00029758,99529.0,99528.0,0.27105829]
[1738000488309,0.00029758,99529.0,99528.0,0.42105829]
[1738000489200,0.00029758,99529.0,99528.0,0.43156736]
[1738000489398,0.00029758,99529.0,99528.0,0.43556736]
[1738000490232,0.00029758,99529.0,99528.0,0.43156736]
[1738000490731,0.00029758,99529.0,99528.0,0.43856736]
[1738000490934,0.00029758,99529.0,99528.0,0.43756736]
[1738000491353,0.00029758,99529.0,99528.0,0.43956736]
[1738000493453,0.00029758,99529.0,99528.0,0.41656736]
[1738000493680,0.00029758,99529.0,99528.0,0.26656736]
[1738000494071,0.00029758,99529.0,99528.0,0.25605829]
[1738000494272,0.00029758,99529.0,99528.0,0.25405829]
[1738000494683,0.00029758,99529.0,99528.0,0.25505829]
[1738000494907,0.00029758,99529.0,99528.0,0.27805829]
[1738000495164,0.00029758,99529.0,99528.0,0.27105829]
[1738000495365,0.00029758,99529.0,99528.0,0.10134729]
[1738000495886,0.00029758,99529.0,99528.0,0.09734729]
[1738000496065,0.00029758,99529.0,99528.0,0.09834729]
[1738000496275,0.00029758,99529.0,99528.0,0.09734729]
[1738000496518,0.00029758,99529.0,99528.0,0.27105829]
[1738000496716,0.00029758,99529.0,99528.0,0.27205829]
[1738000496925,0.00029758,99529.0,99528.0,0.27105829]
[1738000497077,0.00029758,99529.0,99495.0,0.08850398]
[1738000497276,0.00129758,99529.0,99514.0,0.401952]
[1738000497533,0.00129758,99529.0,99503.0,0.00014867]
[1738000497534,0.00129758,99529.0,99528.0,0.150711]
[1738000497714,0.00029758,99529.0,99528.0,0.24805829]
[1738000497904,0.00029758,99529.0,99528.0,0.27105829]
[1738000498933,0.00029758,99529.0,99528.0,0.09734729]
[1738000499136,0.15100658,99529.0,99528.0,0.09734729]
[1738000499772,0.15200658,99529.0,99528.0,0.09734729]
[1738000500446,0.00029758,99529.0,99502.0,0.200999]
[1738000500623,0.00129758,99529.0,99504.0,0.09734729]
[1738000500852,0.00129758,99529.0,99528.0,0.150711]
[1738000500964,0.0010426,99529.0,99528.0,0.24805829]
[1738000501167,0.1517516,99529.0,99528.0,0.09734729]
[1738000501372,0.150711,99528.0,99506.0,0.150744]
[1738000501581,0.200952,99526.0,99507.0,0.09734729]
[1738000501783,4.26e-05,99529.0,99525.0,0.150715]
[1738000501982,4.26e-05,99529.0,99525.0,0.09734729]
[1738000502220,4.26e-05,99529.0,99525.0,0.24806229]
[1738000502423,4.26e-05,99529.0,99525.0,0.09734729]
[1738000502625,4.26e-05,99529.0,99524.0,0.200955]
[1738000502626,4.26e-05,99529.0,99526.0,0.09734729]
[1738000502836,0.0010426,99529.0,99520.0,0.00029694]
[1738000503009,0.150721,99521.0,99520.0,0.00029694]
[1738000503213,0.35097725,99521.0,99520.0,0.00029694]
[1738000503393,0.49014848,99521.0,99520.0,0.00029694]
[1738000503625,0.49014848,99521.0,99478.0,0.150787]
[1738000503626,0.150747,99504.0,99478.0,0.150787]
[1738000503830,0.150747,99504.0,99459.0,0.01054181]
[1738000503831,0.3020035,99504.0,99477.0,0.20105]
[1738000504061,0.300747,99504.0,99477.0,0.20105]
[1738000504268,0.300747,99504.0,99472.0,0.20106]
[1738000504473,0.300747,99504.0,99477.0,0.150787]
[1738000504750,0.300747,99504.0,99462.0,0.201079]
[1738000504958,0.392547,99504.0,99466.0,0.150804]
[1738000505177,0.392547,99504.0,99468.0,0.150801]
[1738000505375,0.392547,99504.0,99469.0,0.023]
[1738000505577,0.392547,99504.0,99460.0,0.201084]
[1738000505578,0.40276942,99504.0,99460.0,0.201084]
[1738000505792,0.40276942,99504.0,99472.0,0.150795]
[1738000506016,0.40276942,99504.0,99473.0,0.150793]
[1738000506241,0.150818,99457.0,99456.0,0.02011506]
[1738000506439,0.150818,99457.0,99453.0,0.08864548]
[1738000506440,0.150823,99454.0,99453.0,0.08864548]
[1738000506730,0.150823,99454.0,99453.0,0.08914145]
[1738000507315,0.150823,99454.0,99453.0,0.00063747]
[1738000507739,0.201069,99468.0,99453.0,0.09798476]
[1738000507946,0.150807,99465.0,99456.0,0.150819]
[1738000508142,0.150813,99461.0,99457.0,0.09734729]
[1738000508346,0.201075,99465.0,99457.0,0.09734729]
[1738000508590,0.150817,99458.0,99457.0,0.09734729]
[1738000509045,0.201074,99466.0,99457.0,0.09734729]
[1738000509247,0.150815,99460.0,99457.0,0.09734729]
[1738000509624,0.150812,99462.0,99457.0,0.09734729]
[1738000509818,0.246368,99469.0,99457.0,0.09734729]
[1738000509819,0.01049627,99470.0,99457.0,0.10034729]
[1738000510025,0.15081,99463.0,99457.0,0.24816429]
[1738000510224,0.201062,99472.0,99457.0,0.24816429]
[1738000510225,0.201053,99477.0,99458.0,0.023]
[1738000510410,0.00125674,99476.0,99460.0,0.201085]
[1738000510614,0.01022046,99484.0,99462.0,0.023]
[1738000510809,0.150787,99478.0,99471.0,0.150796]
[1738000511012,0.201039,99483.0,99464.0,0.023]
[1738000511348,0.08741214,99494.0,99453.0,0.01103695]
[1738000511349,0.08741214,99494.0,99469.0,0.1508]
[1738000511561,0.00125658,99493.0,99453.0,0.00063747]
[1738000511763,0.002,99476.0,99457.0,0.001]
[1738000511964,0.002,99476.0,99458.0,0.09734729]
[1738000512140,0.150815,99459.0,99457.0,0.001]
[1738000512340,0.227973,99421.0,99420.0,0.00029694]
[1738000512562,0.15,99403.0,99350.0,0.0809]
[1738000512775,0.150929,99384.0,99348.0,0.01984732]
[1738000512958,0.150929,99384.0,99383.0,0.06605268]
[1738000513232,0.30218684,99384.0,99383.0,0.06605268]
[1738000513421,0.01,99393.0,99383.0,0.06605268]
[1738000513422,0.201205,99401.0,99383.0,0.16339997]
[1738000513623,0.150918,99392.0,99384.0,0.09734729]
[1738000513772,0.02012018,99419.0,99384.0,0.09734729]
[1738000513773,0.00125767,99409.0,99384.0,0.09734729]
[1738000513950,0.00125767,99408.0,99384.0,0.09734729]
[1738000514154,0.02012018,99419.0,99386.0,0.201235]
[1738000514411,0.002,99421.0,99403.0,0.0001416]
[1738000514626,0.201168,99419.0,99403.0,0.09748889]